bitfinex/quotes_ETHUSD_20240827
["timestamp","ask_amount","ask_price","bid_price","bid_amount"]
[1724769677309,7.6694,2607.8,2607.6,3.07669222]
[1724769678425,7.6694,2607.8,2607.6,3.0]
[1724769679754,7.6694,2607.8,2607.6,4.51087721]
[1724769679908,7.6694,2607.8,2607.6,4.5875683]
[1724769681244,7.6694,2607.8,2607.6,3.07669109]
[1724769682206,8.75106388,2607.7,2607.6,3.0]
[1724769682453,16.42046388,2607.7,2607.2,7.3]
[1724769682749,16.42046388,2607.7,2607.2,8.34781646]
[1724769683057,16.42046388,2607.7,2607.2,7.3]
[1724769684352,16.42046388,2607.7,2607.3,3.0]
[1724769684509,16.42046388,2607.7,2607.1,3.0]
[1724769684712,16.42046388,2607.7,2607.1,3.55]
[1724769686663,16.42046388,2607.7,2607.1,3.0]
[1724769686664,18.06251027,2607.7,2607.1,3.0]
[1724769686963,18.06251027,2607.7,2606.9,7.3]
[1724769688361,18.06251027,2607.7,2607.0,3.0]
[1724769689269,16.42046388,2607.7,2607.0,6.25487886]
[1724769693364,16.42046388,2607.7,2607.0,6.17816457]
[1724769693867,20.25533388,2607.7,2607.0,3.0]
[1724769694164,0.00848146,2607.3,2607.0,3.0]
[1724769695133,8.1125,2607.2,2607.0,3.0]
[1724769695449,0.04396388,2607.1,2607.0,3.0]
[1724769695772,0.04396388,2607.1,2606.0,28.84139918]
[1724769695773,3.836,2606.9,2606.4,7.3]
[1724769696013,7.71336388,2606.8,2606.1,3.17816457]
[1724769696271,0.04396388,2606.7,2606.1,4.22598103]
[1724769696453,7.6694,2606.6,2606.1,4.22598103]
[1724769696629,7.6694,2606.6,2606.3,3.17816457]
[1724769697140,7.6694,2606.6,2606.4,3.0]
[1724769697756,8.60326388,2606.5,2606.4,3.0]
[1724769697954,8.60326388,2606.5,2606.2,3.0]
[1724769699085,7.6694,2606.6,2606.3,3.17816457]
[1724769699245,7.6694,2606.6,2606.4,3.0]
[1724769699447,7.6694,2606.6,2606.5,3.17816457]
[1724769699688,7.6694,2606.6,2606.5,3.0]
[1724769699858,7.6694,2606.6,2606.5,6.17816457]
[1724769700055,7.6694,2606.6,2606.5,6.79598103]
[1724769700691,7.6694,2606.6,2606.5,6.17816457]
[1724769700895,16.16,2606.6,2606.5,3.0]
[1724769701201,16.16,2606.6,2606.1,6.17816457]
[1724769701480,0.04396388,2606.5,2606.2,1.34781646]
[1724769701680,0.04396388,2606.5,2606.1,6.17816457]
[1724769701883,16.16,2606.6,2606.3,3.17816457]
[1724769702088,16.16,2606.6,2606.5,3.17816457]
[1724769702089,7.6694,2606.6,2606.5,3.17816457]
[1724769702291,7.6694,2606.6,2606.5,3.79598103]
[1724769702592,7.6694,2606.6,2606.5,6.17816457]
[1724769702773,15.8511,2606.6,2606.0,3.17816457]
[1724769702957,0.04396388,2606.5,2606.0,3.17816457]
[1724769703163,15.8511,2606.6,2606.2,3.17816457]
[1724769703975,7.6694,2606.6,2606.4,3.17816457]
[1724769704188,7.6694,2606.6,2606.5,3.0]
[1724769704493,7.6694,2606.6,2606.3,3.0]
[1724769704877,7.87176388,2606.5,2606.3,3.0]
[1724769705057,7.6694,2606.4,2606.1,3.0]
[1724769705252,7.8278,2606.3,2606.1,3.0]
[1724769705449,0.00848146,2607.3,2604.4,0.80379918]
[1724769705450,3.83818,2605.4,2604.4,0.80379918]
[1724769705650,7.71336388,2605.3,2604.2,8.1218]
[1724769705887,0.04396388,2605.2,2604.3,1.76353285]
[1724769706072,11.5081,2605.1,2604.3,1.76353285]
[1724769706274,0.04396388,2605.0,2603.9,11.29996457]
[1724769706483,7.6694,2604.9,2603.9,11.29996457]
[1724769706770,0.04396388,2604.8,2603.9,11.29996457]
[1724769706991,7.6694,2604.7,2604.3,3.17816457]
[1724769707191,7.6694,2604.7,2604.4,0.07678458]
[1724769707408,7.6694,2604.7,2604.4,3.0]
[1724769707707,7.6694,2604.7,2604.2,3.0]
[1724769707869,7.6694,2604.7,2604.3,0.61781646]
[1724769708404,7.6694,2604.7,2604.3,0.07678457]
[1724769708564,7.6694,2604.7,2604.0,5.3755681]
[1724769708769,7.6694,2604.7,2604.0,1.20678906]
[1724769708990,7.6694,2604.7,2604.0,4.32236424]
[1724769708991,7.67788146,2604.7,2604.0,4.32236424]
[1724769709479,7.67788146,2604.7,2604.1,3.0]
[1724769709685,7.67788146,2604.7,2604.2,0.07678693]
[1724769709887,7.67788146,2604.7,2604.3,4.24557164]
[1724769710094,7.67788146,2604.7,2604.4,3.6267839]
[1724769715205,7.67788146,2604.7,2604.4,3.55]
[1724769715379,7.67788146,2604.7,2604.4,3.62678394]
[1724769715726,7.67788146,2604.7,2604.4,3.55]
[1724769715883,7.67788146,2604.7,2604.5,3.0]
[1724769716078,7.67788146,2604.7,2604.4,0.55]
[1724769716292,7.67788146,2604.7,2604.1,3.0]
[1724769716509,7.67788146,2604.7,2604.2,0.55]
[1724769719574,7.67788146,2604.7,2604.6,4.24557164]
[1724769719778,7.67788146,2604.7,2604.6,7.79557164]
[1724769720083,7.67788146,2604.7,2604.6,3.0]
[1724769720282,7.67788146,2604.7,2604.4,3.0]
[1724769720510,7.67788146,2604.7,2604.3,4.32235962]
[1724769720680,7.67788146,2604.7,2604.4,3.55]
[1724769720879,7.67788146,2604.7,2604.4,3.62678369]
[1724769721075,7.67788146,2604.7,2604.5,0.78723553]
[1724769722390,7.67788146,2604.7,2604.4,3.55]
[1724769723726,7.67788146,2604.7,2604.4,3.0]
[1724769724423,8.27816388,2604.6,2604.4,3.0]
[1724769724722,8.27816388,2604.6,2604.1,3.0]
[1724769724925,8.27816388,2604.6,2604.0,11.54557164]
[1724769725093,8.27816388,2604.6,2604.0,7.3]
[1724769725298,7.6694,2604.5,2604.0,11.54557164]
[1724769726433,0.04396388,2604.4,2604.1,3.0]
[1724769726728,7.6694,2604.5,2604.1,3.0]
[1724769727098,7.6694,2604.5,2604.1,3.0767947]
[1724769727279,7.6694,2604.5,2604.1,4.46223663]
[1724769727696,7.6694,2604.5,2604.1,4.53903205]
[1724769727881,7.6694,2604.5,2604.2,0.55]
[1724769728094,7.6694,2604.5,2604.3,4.24557164]
[1724769728298,7.6694,2604.5,2604.4,3.0]
[1724769728483,7.6694,2604.5,2604.4,3.78723601]
[1724769729328,7.6694,2604.5,2604.4,3.0]
[1724769730127,7.6694,2604.5,2604.2,3.18435451]
[1724769730328,7.6694,2604.5,2604.3,3.0]
[1724769730533,7.6694,2604.5,2604.4,3.18435451]
[1724769730826,7.6694,2604.5,2604.4,6.18435451]
[1724769731025,7.6694,2604.5,2604.4,3.0]
[1724769731338,7.6694,2604.5,2604.4,3.80278996]
[1724769731630,7.6694,2604.5,2604.4,6.18435451]
[1724769732488,7.6694,2604.5,2604.4,6.73435451]
[1724769735133,7.6694,2604.5,2604.4,7.33527661]
[1724769737560,7.6694,2604.5,2604.4,7.23748949]
[1724769740333,7.6694,2604.5,2604.4,7.96889245]
[1724769741359,7.6694,2604.5,2604.4,7.23746498]
[1724769742109,7.6694,2604.5,2604.4,6.68746498]
[1724769743958,7.6694,2604.5,2604.4,6.08656739]
[1724769744280,7.6694,2604.5,2604.4,6.68749947]
[1724769744864,7.6694,2604.5,2604.4,6.68750307]
[1724769745788,7.6694,2604.5,2604.4,6.08656739]
[1724769746667,7.6694,2604.5,2604.4,6.63656739]
[1724769746874,7.6694,2604.5,2604.4,7.237486]
[1724769747494,7.6694,2604.5,2604.4,6.687486]
[1724769747674,8.43718815,2604.5,2604.4,3.0]
[1724769747875,8.43718815,2604.5,2604.2,3.18435451]
[1724769748181,7.6694,2604.5,2604.2,3.18435451]
[1724769748386,7.6694,2604.5,2604.1,0.0767931]
[1724769748387,7.6694,2604.5,2604.4,3.18435451]
[1724769748573,7.6694,2604.5,2604.1,0.07679321]
[1724769748774,7.6694,2604.5,2604.3,3.18435451]
[1724769748972,7.6694,2604.5,2604.0,7.3]
[1724769749314,14.8405,2604.5,2604.1,6.78533098]
[1724769749475,14.8405,2604.5,2604.1,6.18435451]
[1724769749874,14.8405,2604.5,2604.1,6.26114776]
[1724769750112,14.8405,2604.5,2604.2,0.60096478]
[1724769750288,14.8405,2604.5,2604.1,6.26114776]
[1724769750495,14.8405,2604.5,2604.2,0.60094931]
[1724769750714,14.8405,2604.5,2604.1,6.26114776]
[1724769750715,14.8405,2604.5,2604.3,3.18435451]
[1724769750887,14.8405,2604.5,2604.4,3.0]
[1724769753093,7.6694,2604.5,2604.4,3.0]
[1724769753427,7.6694,2604.5,2604.4,6.17183703]
[1724769753586,7.6694,2604.5,2604.4,3.0]
[1724769753921,7.4026,2604.4,2604.2,3.0]
[1724769754120,7.4026,2604.4,2604.1,6.18435451]
[1724769754772,7.6694,2604.5,2604.3,3.18435451]
[1724769755112,7.6694,2604.5,2604.4,3.0]
[1724769755414,7.6694,2604.5,2604.2,3.0]
[1724769757523,7.6694,2604.5,2604.3,3.18435451]
[1724769757811,7.6694,2604.5,2604.4,3.0]
[1724769759321,7.6694,2604.5,2604.4,3.61843545]
[1724769759535,7.6694,2604.5,2604.4,4.16843545]
[1724769760059,7.6694,2604.5,2604.4,3.0]
[1724769760060,14.8474,2604.5,2604.4,3.0]
[1724769760225,14.8474,2604.5,2604.2,3.0]
[1724769760426,0.04396388,2604.4,2604.2,3.0]
[1724769760957,14.8474,2604.5,2604.2,3.0]
[1724769761646,0.04396388,2604.4,2604.2,3.0]
[1724769761852,0.04396388,2604.4,2603.9,5.00371992]
[1724769762057,0.04396388,2604.4,2604.0,0.60100009]
[1724769762228,0.04396388,2604.4,2603.9,3.80379918]
[1724769762424,14.8474,2604.5,2604.0,5.78900457]
[1724769762636,14.8474,2604.5,2604.1,5.60458856]
[1724769762827,14.8474,2604.5,2604.1,3.0]
[1724769763229,0.04396388,2604.4,2604.1,3.0]
[1724769764517,16.33298815,2604.5,2604.1,3.0]
[1724769764518,7.6694,2604.5,2604.2,3.18435451]
[1724769764720,7.6694,2604.5,2604.4,3.18435451]
[1724769764922,7.6694,2604.5,2604.4,6.18435451]
[1724769765217,7.6694,2604.5,2604.4,8.78865441]
[1724769765650,7.6694,2604.5,2604.4,6.18435451]
[1724769766216,7.6694,2604.5,2604.4,6.81046896]
[1724769766422,7.6694,2604.5,2604.4,9.96480204]
[1724769766630,7.6694,2604.5,2604.4,6.78044753]
[1724769766933,7.6694,2604.5,2604.4,9.96480204]
[1724769767930,7.6694,2604.5,2604.4,13.8413756]
[1724769768264,7.6694,2604.5,2604.4,10.77119184]
[1724769768634,7.6694,2604.5,2604.4,9.36389167]
[1724769768832,7.6694,2604.5,2604.4,10.77114286]
[1724769769646,7.6694,2604.5,2604.4,13.84136859]
[1724769769963,7.6694,2604.5,2604.4,10.77094903]
[1724769770315,7.6694,2604.5,2604.4,9.33863861]
[1724769770719,7.6694,2604.5,2604.4,10.14483458]
[1724769771131,7.6694,2604.5,2604.4,9.33863861]
[1724769771771,7.6694,2604.5,2604.4,9.76505723]
[1724769771982,7.6694,2604.5,2604.4,9.94354984]
[1724769772298,7.6694,2604.5,2604.4,11.56805737]
[1724769772539,7.6694,2604.5,2604.4,12.16890151]
[1724769772669,7.6694,2604.5,2604.4,11.36275306]
[1724769772867,7.6694,2604.5,2604.4,11.36276783]
[1724769773175,7.6694,2604.5,2604.4,12.16891628]
[1724769773378,7.6694,2604.5,2604.4,11.3627662]
[1724769773876,7.6694,2604.5,2604.4,12.16891465]
[1724769774211,7.6694,2604.5,2604.4,4.15083248]
[1724769774660,7.6694,2604.5,2604.4,3.60083248]
[1724769781208,7.6694,2604.5,2604.4,3.0]
[1724769781693,14.6189,2604.5,2604.4,3.0]
[1724769782314,7.6694,2604.5,2604.4,3.18435451]
[1724769782517,0.00848146,2604.7,2604.4,11.41316771]
[1724769782734,0.00848146,2604.7,2604.6,3.18435451]
[1724769782916,0.00848146,2604.7,2604.6,6.78518165]
[1724769783093,0.00848146,2604.7,2604.6,6.18435451]
[1724769784221,0.00848146,2604.7,2604.6,6.86469193]
[1724769784586,0.00848146,2604.7,2604.6,3.0]
[1724769784883,0.00848146,2604.7,2604.3,3.60091528]
[1724769785207,0.00848146,2604.7,2604.4,3.18435451]
[1724769785408,0.00848146,2604.7,2604.6,3.18435451]
[1724769785607,0.00848146,2604.7,2604.6,6.80278996]
[1724769786192,0.00848146,2604.7,2604.6,3.61843545]
[1724769786392,0.00848146,2604.7,2604.6,3.0]
[1724769787021,0.00848146,2604.7,2604.5,3.0]
[1724769787694,7.0893,2604.6,2604.3,3.60091262]
[1724769788017,0.04396388,2604.5,2604.2,0.00584234]
[1724769791452,3.8398,2604.3,2604.2,0.00584234]
[1724769791730,17.92595451,2604.3,2604.2,0.00584234]
[1724769791930,17.92595451,2604.3,2603.1,1.61275714]
[1724769791931,3.84097,2603.6,2603.0,0.80607545]
[1724769792137,7.446097,2603.5,2603.1,2.00449929]
[1724769792293,7.062,2603.5,2603.2,2.81017504]
[1724769792494,7.062,2603.5,2603.3,2.00409959]
[1724769792724,7.062,2603.5,2603.1,0.80607545]
[1724769793029,6.7371,2604.1,2603.2,2.00411075]
[1724769793241,6.7371,2604.1,2603.7,3.18435451]
[1724769793390,6.7371,2604.1,2603.9,3.18435451]
[1724769794029,0.04396388,2604.0,2603.7,3.18435451]
[1724769794208,0.04396388,2604.0,2603.8,3.0]
[1724769794603,6.7371,2604.1,2603.9,3.18435451]
[1724769794807,7.20346388,2604.4,2603.9,3.18435451]
[1724769795033,7.20346388,2604.4,2604.1,3.18435451]
[1724769795034,7.92381027,2604.4,2604.1,3.18435451]
[1724769795237,7.20346388,2604.4,2604.3,3.18435451]
[1724769795405,7.18268146,2604.7,2604.3,3.18435451]
[1724769795607,0.76223203,2604.6,2604.3,3.18435451]
[1724769795815,0.04396388,2604.6,2604.3,3.18435451]
[1724769796156,0.04396388,2604.6,2604.4,3.0]
[1724769797336,0.04396388,2604.6,2604.2,3.0]
[1724769797500,0.04396388,2604.6,2604.3,3.18435451]
[1724769797704,0.04396388,2604.6,2604.4,3.0]
[1724769798144,0.00848146,2604.7,2604.5,3.18435451]
[1724769798365,0.00848146,2604.7,2604.6,3.07678189]
[1724769798644,0.00848146,2604.7,2604.6,3.0]
[1724769798831,0.00848146,2604.7,2604.6,3.61843545]
[1724769799302,0.00848146,2604.7,2604.6,4.16843545]
[1724769802247,0.00848146,2604.7,2604.6,3.61843545]
[1724769802434,0.00848146,2604.7,2604.6,3.0]
[1724769803060,0.00848146,2604.7,2604.2,3.0]
[1724769803402,0.00848146,2604.7,2604.3,3.18435451]
[1724769803748,0.00848146,2604.7,2604.4,3.0]
[1724769803946,0.00848146,2604.7,2604.5,0.61843545]
[1724769804305,0.00848146,2604.7,2604.6,2.0]
[1724769805859,0.00848146,2604.7,2604.6,13.63108053]
[1724769806159,0.00848146,2604.7,2604.6,5.0]
[1724769806363,0.00848146,2604.7,2604.6,6.22755251]
[1724769806847,0.00848146,2604.7,2604.6,5.55]
[1724769807148,0.00848146,2604.7,2604.6,6.70051156]
[1724769807332,0.00848146,2604.7,2604.6,7.30129793]
[1724769807541,0.00848146,2604.7,2604.6,6.70051156]
[1724769808547,0.00848146,2604.7,2604.6,6.62373318]
[1724769808882,0.00848146,2604.7,2604.6,6.07373318]
[1724769809154,0.00848146,2604.7,2604.6,5.0]
[1724769809367,0.00848146,2604.7,2604.6,2.0]
[1724769809523,0.00848146,2604.7,2604.6,5.0]
[1724769809708,0.00848146,2604.7,2604.6,2.0]
[1724769813029,6.6746,2605.1,2604.6,2.0]
[1724769813030,3.72704534,2605.1,2604.6,2.0]
[1724769813938,3.18435451,2604.9,2604.6,2.0]
[1724769814145,7.02356451,2604.7,2604.6,2.0]
[1724769814446,10.86277451,2604.7,2604.6,2.0]
[1724769814643,15.78826196,2604.7,2604.6,2.0]
[1724769815042,4.82063196,2604.7,2602.7,10.15782996]
[1724769815227,4.82063196,2604.7,2603.1,3.18435451]
[1724769815228,3.18435451,2604.5,2603.1,3.18435451]
[1724769815430,3.18435451,2604.5,2603.2,6.75434475]
[1724769815662,3.18435451,2604.5,2603.3,3.18435451]
[1724769815870,3.0,2605.0,2603.5,3.18435451]
[1724769815871,3.18435451,2604.7,2603.5,3.18435451]
[1724769816204,6.4721,2604.6,2603.4,0.99386993]
[1724769816344,0.96564545,2604.5,2603.5,0.47651592]
[1724769817589,0.96564545,2604.5,2603.5,3.66087043]
[1724769817728,0.96564545,2604.5,2603.6,3.0]
[1724769817934,0.96564545,2604.5,2603.5,3.66087043]
[1724769818161,0.74377455,2604.4,2603.6,3.0]
[1724769818327,0.74377455,2604.4,2603.5,0.47651592]
[1724769818939,6.7105,2604.3,2603.5,0.47651592]
[1724769819574,6.7105,2604.3,2603.5,3.66087043]
[1724769819733,6.7105,2604.3,2603.6,3.77315533]
[1724769820458,6.2119,2604.7,2603.7,6.5801]
[1724769820635,6.2119,2604.7,2603.8,3.0]
[1724769821481,6.2119,2604.7,2603.8,3.07680672]
[1724769822481,6.2119,2604.7,2603.9,0.55]
[1724769822679,6.2119,2604.7,2604.0,0.43947584]
[1724769823338,10.63435451,2605.2,2604.0,0.43947584]
[1724769823566,3.18435451,2605.0,2604.0,0.43947584]
[1724769823739,6.4467,2605.1,2604.0,0.43947584]
[1724769824067,3.18435451,2605.0,2604.0,0.43947584]
[1724769824241,0.96310545,2604.9,2604.0,0.43947584]
[1724769826347,6.4467,2605.1,2604.0,0.43947584]
[1724769826973,6.4467,2605.1,2604.1,6.589]
[1724769827140,6.4467,2605.1,2604.2,3.0]
[1724769827635,3.18435451,2605.0,2604.2,3.0]
[1724769828681,3.18435451,2605.2,2604.2,3.0]
[1724769828984,6.3981,2605.1,2604.2,3.9589]
[1724769829184,6.3981,2605.1,2604.2,3.0]
[1724769830740,6.3981,2605.1,2604.2,3.07679248]
[1724769831892,6.5649,2605.3,2604.3,0.07679037]
[1724769832195,6.5649,2605.3,2604.3,7.18029037]
[1724769832400,0.97492545,2605.2,2604.4,3.0]
[1724769832688,3.18435451,2605.4,2604.4,3.07678629]
[1724769833368,3.18435451,2605.4,2604.5,6.1271]
[1724769833573,3.18435451,2605.4,2604.6,3.0]
[1724769834079,3.18435451,2605.2,2604.6,3.0]
[1724769834452,3.18435451,2605.0,2604.6,3.0]
[1724769834873,3.18435451,2605.2,2604.6,3.0]
[1724769837277,7.6778,2605.1,2604.6,3.0]
[1724769837479,8.44558,2605.1,2604.6,3.0]
[1724769837876,7.6778,2605.1,2604.7,6.4536]
[1724769838076,7.6778,2605.1,2604.8,3.0]
[1724769840594,7.6778,2605.1,2604.6,3.0]
[1724769840788,9.39773545,2605.1,2604.6,3.0]
[1724769841784,7.6778,2605.1,2604.6,3.0]
[1724769848922,7.6778,2605.1,2604.7,6.4125]
[1724769849254,7.6778,2605.1,2604.8,3.0]
[1724769854861,7.6778,2605.1,2605.0,0.02400046]
[1724769855734,10.86215451,2605.1,2605.0,0.02400046]
[1724769855942,12.56155996,2605.1,2605.0,0.02400046]
[1724769856138,18.69345996,2605.1,2605.0,0.02400046]
[1724769858931,3.18435451,2603.8,2602.9,6.5898]
[1724769859132,0.05,2604.9,2602.6,6.5898]
[1724769859133,3.18435451,2603.4,2602.6,6.5898]
[1724769859331,7.6778,2603.3,2602.6,6.5898]
[1724769859650,3.18435451,2603.2,2602.6,6.5898]
[1724769859973,7.6778,2603.1,2602.6,6.5898]
[1724769860133,7.6778,2603.1,2602.6,7.24878]
[1724769860736,7.6778,2603.1,2602.7,3.0]
[1724769862174,7.6778,2603.1,2602.8,6.1602]
[1724769862345,7.6778,2603.1,2602.9,3.0]
[1724769862547,7.6778,2603.1,2603.0,6.1602]
[1724769862982,7.6778,2603.1,2603.0,10.07622]
[1724769866356,7.6778,2603.1,2603.0,10.62622]
[1724769866687,7.6778,2603.1,2603.0,11.19482099]
[1724769867673,7.6778,2603.1,2603.0,10.62622]
[1724769869992,7.6778,2603.1,2603.0,11.19482099]
[1724769870851,7.6778,2603.1,2603.0,15.54665947]
[1724769871182,7.6778,2603.1,2603.0,11.70493947]
[1724769871363,7.6778,2603.1,2603.0,11.13633848]
[1724769871569,7.6778,2603.1,2603.0,10.62622]
[1724769873719,7.6778,2603.1,2603.0,11.19482099]
[1724769874582,7.6778,2603.1,2603.0,15.54665947]
[1724769875202,7.6778,2603.1,2603.0,11.70493947]
[1724769875517,7.6778,2603.1,2603.0,14.97805848]
[1724769876373,7.6778,2603.1,2603.0,11.13633848]
[1724769876783,7.6778,2603.1,2603.0,10.62622]
[1724769878084,7.6778,2603.1,2603.0,10.07622]
[1724769878405,7.6778,2603.1,2603.0,9.1602]
[1724769882622,7.6778,2603.1,2603.0,9.7102]
[1724769884255,7.6778,2603.1,2603.0,9.1602]
[1724769887559,7.6778,2603.1,2603.0,10.3113901]
[1724769887881,7.6778,2603.1,2603.0,12.15303551]
[1724769888777,7.6778,2603.1,2603.0,12.15302773]
[1724769890320,7.6778,2603.1,2603.0,9.76138232]
[1724769890524,7.6778,2603.1,2602.6,0.96189171]
[1724769890719,7.6778,2603.1,2602.4,3.118]
[1724769891223,7.6778,2603.1,2602.5,3.18435451]
[1724769891886,7.6778,2603.1,2602.6,3.0]
[1724769894627,7.6778,2603.1,2602.7,3.18435451]
[1724769894833,7.6778,2603.1,2602.8,3.0]
[1724769896840,7.6778,2603.1,2602.8,5.9577]
[1724769897044,7.6778,2603.1,2602.8,3.0]
[1724769897213,7.6778,2603.1,2602.7,3.18435451]
[1724769897547,7.6778,2603.1,2602.9,2.9163]
[1724769897695,7.6778,2603.1,2603.0,3.0]
[1724769897897,7.6778,2603.1,2603.0,6.91855054]
[1724769898112,7.6778,2603.1,2603.0,6.4663]
[1724769898328,7.6778,2603.1,2603.0,7.81555645]
[1724769898928,7.6778,2603.1,2603.0,3.0]
[1724769899111,7.6778,2603.1,2602.7,3.0]
[1724769899599,7.6778,2603.1,2602.8,3.18435451]
[1724769899799,7.6778,2603.1,2602.9,3.0]
[1724769900394,7.6778,2603.1,2602.7,3.0]
[1724769900598,7.6778,2603.1,2602.8,3.0215]
[1724769900803,7.6778,2603.1,2602.9,3.0]
[1724769902609,7.6778,2603.1,2603.0,0.55]
[1724769903043,7.6778,2603.1,2603.0,3.73435451]
[1724769903248,7.6778,2603.1,2603.0,8.48599692]
[1724769903546,7.6778,2603.1,2603.0,11.38039692]
[1724769904215,7.6778,2603.1,2603.0,19.65548792]
[1724769904414,7.6778,2603.1,2603.0,18.36989242]
[1724769904661,7.6778,2603.1,2603.0,19.17596787]
[1724769905263,7.6778,2603.1,2603.0,17.8180736]
[1724769905930,7.6778,2603.1,2603.0,17.95827012]
[1724769906535,7.6778,2603.1,2603.0,13.3847026]
[1724769908570,7.6778,2603.1,2603.0,17.2264226]
[1724769909249,7.6778,2603.1,2603.0,11.38039692]
[1724769909455,7.6778,2603.1,2602.8,3.99042996]
[1724769909627,7.6778,2603.1,2602.6,3.99042996]
[1724769909833,3.1277,2603.0,2602.5,7.3]
[1724769910056,3.1277,2603.0,2602.2,7.37792713]
[1724769910057,7.6778,2602.9,2602.2,13.47215451]
[1724769910365,7.6778,2602.9,2602.4,3.18435451]
[1724769911254,7.6778,2602.9,2602.6,3.18435451]
[1724769911485,7.6778,2602.9,2602.7,3.0]
[1724769913052,7.6778,2602.9,2602.7,3.61843545]
[1724769913389,7.6778,2602.9,2602.8,3.18435451]
[1724769913599,7.6778,2602.9,2602.8,6.73435451]
[1724769914094,7.6778,2602.9,2602.8,6.81118927]
[1724769914401,7.6778,2602.9,2602.8,10.65319927]
[1724769914693,7.6778,2602.9,2602.8,22.205989]
[1724769914996,3.8393,2604.7,2603.2,3.0943]
[1724769914997,2.9747,2604.2,2603.2,3.0943]
[1724769915198,2.9747,2604.2,2603.6,3.18435451]
[1724769915495,3.27217,2604.2,2603.7,3.0]
[1724769916496,3.27217,2604.2,2603.3,3.0]
[1724769916497,2.9289,2604.1,2603.3,3.0]
[1724769916795,2.9289,2603.9,2603.1,3.0]
[1724769916978,3.84046,2603.9,2603.1,3.0]
[1724769917187,3.84046,2603.9,2602.6,3.1268]
[1724769917188,3.18435451,2603.2,2602.1,8.50577262]
[1724769917506,2.9424,2603.1,2602.2,3.18435451]
[1724769917651,2.9424,2603.1,2602.2,4.17504851]
[1724769917854,2.9424,2603.1,2601.9,2.00498075]
[1724769918078,2.9834,2602.9,2601.8,2.99998093]
[1724769918286,0.61677545,2602.8,2602.1,3.18435451]
[1724769918475,2.9834,2602.9,2602.3,3.18435451]
[1724769918900,2.9834,2602.9,2601.9,0.07685713]
[1724769918901,2.9834,2602.9,2602.1,3.18435451]
[1724769919115,0.29834,2602.8,2602.1,3.18435451]
[1724769920163,0.29834,2602.8,2602.2,3.0]
[1724769921801,0.29834,2602.8,2602.1,3.18435451]
[1724769922007,0.29834,2602.8,2602.2,3.0]
[1724769924200,0.29834,2602.8,2602.0,3.0]
[1724769924201,2.8449,2602.8,2602.0,3.0]
[1724769924411,2.8449,2602.8,2601.8,3.0]
[1724769924575,0.668689,2602.7,2601.8,3.0]
[1724769924959,0.668689,2602.7,2601.9,3.18435451]
[1724769925164,2.8449,2602.8,2602.0,3.0]
[1724769926622,7.02637451,2602.8,2602.0,3.0]
[1724769926827,2.8577,2602.3,2601.4,7.3]
[1724769927115,2.8577,2602.3,2601.1,12.26]
[1724769927116,2.8577,2602.3,2601.1,3.18435451]
[1724769927320,10.545,2602.2,2601.1,3.18435451]
[1724769927521,1.0545,2602.1,2601.1,3.18435451]
[1724769927816,10.545,2602.0,2601.1,3.18435451]
[1724769929531,10.545,2602.0,2601.2,3.0]
[1724769929685,10.545,2602.0,2601.0,3.0]
[1724769929884,1.0545,2601.9,2601.0,3.0]
[1724769930196,7.6873,2601.8,2601.3,3.18435451]
[1724769930403,7.6873,2601.8,2601.0,3.07689052]
[1724769930404,7.6873,2601.8,2601.5,3.18435451]
[1724769930694,7.6873,2601.8,2601.6,3.0]
[1724769931680,7.6873,2601.8,2601.4,3.0]
[1724769932306,7.6873,2601.8,2601.3,3.0]
[1724769933525,2.9546,2601.7,2600.7,22.74435451]
[1724769933725,7.6873,2601.6,2600.7,13.05270996]
[1724769934430,7.6873,2601.6,2600.7,10.48435451]
[1724769934584,2.9546,2601.5,2600.7,7.3]
[1724769934784,7.6873,2601.4,2600.7,7.3]
[1724769935200,7.6873,2601.4,2600.5,3.18435451]
[1724769935394,1.06419,2601.3,2600.5,3.18435451]
[1724769935607,7.6873,2601.2,2600.7,3.18435451]
[1724769936523,7.6873,2601.2,2600.8,3.0]
[1724769937018,3.0553,2601.1,2600.8,3.0]
[1724769937238,3.0553,2601.1,2600.6,3.0]
[1724769938636,3.0553,2601.1,2600.7,3.18435451]
[1724769938791,7.6873,2601.2,2600.8,3.0]
[1724769940619,7.6873,2601.2,2600.6,3.0]
[1724769940844,3.88993,2601.1,2600.4,3.0]
[1724769941005,7.6873,2601.0,2600.4,3.0]
[1724769942351,7.6873,2601.0,2600.5,3.18435451]
[1724769942643,7.6873,2601.0,2600.6,3.0]
[1724769943018,7.6873,2601.0,2600.9,3.18435451]
[1724769943241,7.6873,2601.0,2600.9,6.18435451]
[1724769943615,7.6873,2601.0,2600.9,3.0]
[1724769943861,7.6873,2601.0,2600.8,3.0]
[1724769944347,7.6873,2601.0,2600.5,3.0]
[1724769945545,7.6873,2601.0,2600.6,0.55]
[1724769947751,7.6873,2601.0,2600.5,3.0]
[1724769949697,3.86569215,2603.8,2601.7,2.9587]
[1724769949821,3.1012,2603.6,2602.4,4.25736371]
[1724769950019,3.1012,2603.6,2602.8,0.06667544]
[1724769951859,3.84186,2602.9,2602.8,0.06667544]
[1724769952171,14.44816,2602.9,2602.8,0.06667544]
[1724769952325,17.44816,2602.9,2602.8,0.06667544]
[1724769953172,21.29002,2602.9,2602.8,0.06667544]
[1724769953466,17.44816,2602.9,2602.8,0.06667544]
[1724769953770,20.00289137,2602.9,2602.8,0.06667544]
[1724769954292,13.16103137,2602.9,2602.8,0.06667544]
[1724769954842,10.6063,2602.9,2602.8,0.06667544]
[1724769955844,3.84211,2602.8,2601.7,3.0]
[1724769956041,7.6839,2602.7,2601.7,3.0]
[1724769957436,6.6482,2602.6,2601.7,3.0]
[1724769957738,9.11711,2602.5,2601.6,3.0]
[1724769957942,7.6839,2602.5,2601.6,3.0]
[1724769958277,7.6839,2602.5,2601.6,7.25736371]